bitfinex-derivatives/quotes_BTCF0:USTF0_20260119
["timestamp","ask_amount","ask_price","bid_price","bid_amount"]
[1768812210331,0.010737,93185.0,93178.0,0.00986909]
[1768812210527,0.010736,93188.0,93178.0,0.00986909]
[1768812211533,0.010737,93186.0,93175.0,0.00995544]
[1768812211835,0.010737,93186.0,93175.0,0.01982453]
[1768812212042,0.010737,93181.0,93175.0,0.01982453]
[1768812212247,0.010736,93190.0,93174.0,0.000161]
[1768812212435,0.010737,93180.0,93174.0,0.000161]
[1768812213132,0.010737,93183.0,93174.0,0.000161]
[1768812213341,0.010737,93181.0,93174.0,0.000161]
[1768812215347,0.010736,93188.0,93170.0,0.09664]
[1768812215645,0.000161,93187.0,93170.0,0.09664]
[1768812215842,0.010739,93167.0,93146.0,0.010741]
[1768812216052,0.010739,93167.0,93135.0,0.07685794]
[1768812216053,0.00940715,93171.0,93150.0,0.09664]
[1768812216746,0.000161,93170.0,93150.0,0.09664]
[1768812216944,0.000161,93170.0,93154.0,0.01074]
[1768812217145,0.000161,93170.0,93150.0,0.09664]
[1768812217450,0.000161,93170.0,93153.0,0.01074]
[1768812217841,0.000161,93170.0,93155.0,0.01879815]
[1768812218041,0.000161,93170.0,93156.0,0.01879815]
[1768812218243,0.000161,93170.0,93157.0,0.00884271]
[1768812218648,0.010739,93169.0,93157.0,0.00884271]
[1768812219049,0.000161,93170.0,93157.0,0.00884271]
[1768812219050,0.0109,93170.0,93157.0,0.00884271]
[1768812219547,0.000161,93170.0,93157.0,0.00884271]
[1768812219850,0.000161,93170.0,93156.0,0.00995544]
[1768812220066,0.000161,93170.0,93156.0,4.4e-07]
[1768812220359,0.000161,93170.0,93153.0,0.00888916]
[1768812220743,0.01074,93161.0,93153.0,0.00888916]
[1768812221054,0.010739,93164.0,93153.0,0.00888916]
[1768812222047,0.010739,93162.0,93153.0,0.00888916]
[1768812223248,0.00950057,93170.0,93151.0,0.00906141]
[1768812223455,0.01074,93157.0,93149.0,0.01122112]
[1768812223640,0.01074,93157.0,93149.0,0.10786112]
[1768812224046,0.0293412,93169.0,93149.0,0.10786112]
[1768812224847,0.01074,93158.0,93149.0,0.10786112]
[1768812225048,0.01074,93156.0,93149.0,0.10786112]
[1768812225353,0.00933957,93166.0,93149.0,0.00236182]
[1768812225659,0.00926263,93167.0,93149.0,0.00236182]
[1768812225660,0.01074,93157.0,93149.0,0.00236182]
[1768812225955,0.01074,93157.0,93146.0,0.09664]
[1768812226142,0.01074,93160.0,93146.0,0.09664]
[1768812226348,0.01074,93160.0,93146.0,0.10547312]
[1768812226652,0.01074,93160.0,93147.0,0.00883312]
[1768812226848,0.010739,93165.0,93147.0,0.00883312]
[1768812227048,0.010739,93165.0,93148.0,0.00883312]
[1768812227249,0.010739,93163.0,93149.0,0.00906141]
[1768812227448,0.01074,93161.0,93150.0,0.00883312]
[1768812228851,0.01074,93159.0,93150.0,0.00883312]
[1768812229055,0.010739,93168.0,93150.0,0.00883312]
[1768812229743,0.02007857,93168.0,93149.0,0.00906141]
[1768812229948,0.02007857,93168.0,93146.0,0.09664]
[1768812229949,0.010741,93151.0,93146.0,0.10570141]
[1768812230762,0.010741,93151.0,93144.0,0.00236193]
[1768812231766,0.010741,93146.0,93131.0,0.00019829]
[1768812231970,0.010741,93148.0,93132.0,0.00924501]
[1768812232166,0.010741,93148.0,93133.0,0.0001836]
[1768812232362,0.010741,93145.0,93133.0,0.0001836]
[1768812232558,0.010741,93145.0,93134.0,0.0001836]
[1768812232967,0.010742,93139.0,93129.0,0.00254593]
[1768812233961,0.010742,93136.0,93129.0,0.00254593]
[1768812234474,0.010742,93136.0,93129.0,9.3e-07]
[1768812234670,0.010743,93132.0,93127.0,7e-07]
[1768812234874,0.010743,93129.0,93127.0,7e-07]
[1768812235174,0.010743,93129.0,93123.0,0.09664]
[1768812235375,0.010743,93129.0,93124.0,0.09668]
[1768812235672,0.010743,93129.0,93109.0,0.01312872]
[1768812235673,0.010743,93129.0,93125.0,0.09668]
[1768812235973,0.010743,93129.0,93124.0,0.09668]
[1768812236174,0.000161,93136.0,93124.0,0.09668]
[1768812236768,0.000161,93136.0,93115.0,0.00641687]
[1768812236968,0.010743,93131.0,93115.0,0.00641687]
[1768812237668,0.010743,93128.0,93115.0,0.00641687]
[1768812240273,0.010744,93125.0,93115.0,0.00641687]
[1768812240473,0.010743,93129.0,93115.0,0.00641687]
[1768812241675,0.010744,93127.0,93115.0,0.00641687]
[1768812242368,0.010743,93131.0,93115.0,0.00641687]
[1768812242569,0.010743,93133.0,93116.0,0.00639879]
[1768812243076,0.010903,93136.0,93117.0,0.00639879]
[1768812244667,0.010743,93133.0,93117.0,0.00639879]
[1768812245274,0.000161,93136.0,93123.0,0.00639761]
[1768812245578,0.010741,93148.0,93130.0,0.00639761]
[1768812246371,0.010741,93148.0,93134.0,0.00642817]
[1768812247170,0.010741,93151.0,93134.0,0.00642817]
[1768812247373,0.010741,93149.0,93134.0,0.00642817]
[1768812248079,0.010741,93149.0,93135.0,0.00016296]
[1768812248379,0.010741,93147.0,93135.0,0.00016296]
[1768812248579,0.010741,93147.0,93136.0,0.00016296]
[1768812250181,0.10631493,93156.0,93136.0,0.010742]
[1768812250375,0.00999751,93157.0,93137.0,0.00609709]
[1768812250576,0.02453179,93156.0,93139.0,0.00609709]
[1768812250779,0.00963493,93160.0,93139.0,0.00609709]
[1768812250974,0.02453165,93159.0,93139.0,0.00609709]
[1768812251172,0.02453165,93158.0,93139.0,0.00609709]
[1768812251372,0.010741,93151.0,93139.0,0.00609709]
[1768812251580,0.00999751,93159.0,93139.0,0.00609709]
[1768812251782,0.02453503,93158.0,93139.0,0.00609709]
[1768812252080,0.02453503,93157.0,93139.0,0.00609709]
[1768812252266,0.010741,93148.0,93138.0,0.09668]
[1768812252874,0.00999751,93151.0,93135.0,0.09668]
[1768812253682,0.00999751,93157.0,93136.0,0.00609041]
[1768812253876,0.01235882,93169.0,93136.0,0.00609041]
[1768812254081,0.010739,93166.0,93146.0,0.01682822]
[1768812254775,0.010739,93166.0,93147.0,0.09668]
[1768812254976,0.01310043,93164.0,93147.0,0.09668]
[1768812255577,0.01310043,93164.0,93148.0,0.01682822]
[1768812255776,0.01310043,93164.0,93149.0,0.00621827]
[1768812257987,0.010739,93162.0,93149.0,0.00621827]
[1768812258180,0.00236143,93164.0,93149.0,0.00621827]
[1768812258386,0.01074,93161.0,93147.0,0.09668]
[1768812259387,0.01074,93158.0,93147.0,0.09668]
[1768812260080,0.01074,93161.0,93147.0,0.09668]
[1768812260788,0.01074,93159.0,93147.0,0.09668]
[1768812262288,0.00963493,93163.0,93147.0,0.09668]
[1768812262480,0.01074,93160.0,93147.0,0.09668]
[1768812262782,0.01963244,93163.0,93147.0,0.09668]
[1768812262988,0.00236143,93164.0,93152.0,0.00619835]
[1768812263195,0.01310043,93164.0,93152.0,0.00619835]
[1768812263377,0.01310043,93164.0,93148.0,0.010741]
[1768812265289,0.00236143,93164.0,93152.0,0.01694887]
[1768812266691,0.00236143,93164.0,93153.0,0.00587783]
[1768812268498,0.00236143,93164.0,93154.0,0.01074]
[1768812268699,0.03839184,93196.0,93155.0,0.00579593]
[1768812268885,0.00943972,93208.0,93186.0,0.00343419]
[1768812269084,0.00971983,93206.0,93187.0,0.106296]
[1768812269387,0.01915955,93205.0,93187.0,0.202976]
[1768812269581,0.00971983,93205.0,93187.0,0.19224]
[1768812269783,0.01180002,93209.0,93189.0,0.010736]
[1768812269984,0.010734,93208.0,93189.0,0.010736]
[1768812270194,0.02045383,93205.0,93187.0,0.192401]
[1768812270495,0.01915955,93204.0,93187.0,0.192401]
[1768812270885,0.01915955,93207.0,93190.0,0.14379833]
[1768812271084,0.010735,93204.0,93190.0,0.14379833]
[1768812271591,0.01915955,93206.0,93190.0,0.14379833]
[1768812272601,0.00971983,93206.0,93190.0,0.14379833]
[1768812274087,0.00971983,93206.0,93191.0,0.09664]
[1768812274389,0.00971983,93206.0,93192.0,0.09664]
[1768812274793,0.00971983,93206.0,93187.0,0.000161]
[1768812274794,0.00971983,93202.0,93187.0,0.000161]
[1768812274996,0.00971983,93202.0,93190.0,0.14379833]
[1768812275592,0.01915955,93207.0,93190.0,0.14379833]
[1768812276401,0.02989355,93206.0,93190.0,0.14379833]
[1768812276601,0.01915955,93205.0,93191.0,0.09664]
[1768812278602,0.01915955,93205.0,93190.0,0.14379833]
[1768812279100,0.01915955,93205.0,93191.0,0.09664]
[1768812279993,0.010735,93204.0,93191.0,0.09664]
[1768812280394,0.01915955,93205.0,93191.0,0.09664]
[1768812280899,0.01915955,93205.0,93190.0,0.14379833]
[1768812281101,0.01915955,93205.0,93191.0,0.09664]
[1768812281703,0.01915955,93205.0,93192.0,0.09664]
[1768812282905,0.00971983,93205.0,93192.0,0.09664]
[1768812283706,0.01853058,93203.0,93193.0,0.09664]
[1768812284408,0.01853058,93203.0,93190.0,0.14379833]
[1768812284600,0.010735,93202.0,93191.0,0.09664]
[1768812285903,0.010735,93202.0,93190.0,0.14379833]
[1768812286104,0.010735,93202.0,93191.0,0.09664]
[1768812286415,0.010735,93202.0,93187.0,0.000161]
[1768812286700,0.00910186,93203.0,93190.0,0.14379833]
[1768812286906,0.00942872,93207.0,93190.0,0.14379833]
[1768812288096,0.010735,93204.0,93190.0,0.14379833]
[1768812288296,0.02016272,93207.0,93190.0,0.14379833]
[1768812288700,0.010734,93207.0,93190.0,0.14379833]
[1768812289408,0.010735,93205.0,93190.0,0.14379833]
[1768812289708,0.010735,93203.0,93190.0,0.14379833]
[1768812290900,0.01853058,93208.0,93190.0,0.14379833]
[1768812291099,0.01853058,93208.0,93191.0,0.09664]
[1768812291902,0.010735,93202.0,93191.0,0.09664]
[1768812292598,0.010736,93191.0,93185.0,0.09664]
[1768812292802,0.010736,93192.0,93185.0,0.02329244]
[1768812293305,0.010736,93192.0,93180.0,0.14379833]
[1768812293507,0.010736,93194.0,93186.0,0.09664]
[1768812293915,0.010736,93194.0,93187.0,0.09664]
[1768812295202,0.010736,93192.0,93185.0,0.09664]
[1768812296205,0.010736,93192.0,93185.0,0.09069]
[1768812296807,0.010736,93192.0,93184.0,0.03259]
[1768812298117,0.02409876,93191.0,93184.0,0.03259]
[1768812298313,0.010736,93192.0,93184.0,0.03259]
[1768812298512,0.02409876,93191.0,93184.0,0.03259]
[1768812298713,0.010736,93192.0,93184.0,0.03259]
[1768812298909,0.02409876,93191.0,93184.0,0.03259]
[1768812299106,0.010736,93192.0,93184.0,0.03259]
[1768812299420,0.010737,93183.0,93179.0,0.09664]
[1768812300109,0.010737,93183.0,93170.0,0.14379833]
[1768812300319,0.010737,93180.0,93171.0,0.09664]
[1768812300514,0.010737,93183.0,93172.0,0.09664]
[1768812300725,0.02410115,93182.0,93173.0,0.09664]
[1768812301019,0.02410115,93181.0,93172.0,0.09664]
[1768812301204,0.010737,93183.0,93172.0,0.09664]
[1768812301400,0.010737,93181.0,93172.0,0.09664]
[1768812302919,0.01929523,93183.0,93163.0,0.00381128]
[1768812303213,0.010738,93176.0,93164.0,0.09664]
[1768812303418,0.010738,93176.0,93164.0,0.10923435]
[1768812303819,0.010738,93176.0,93164.0,0.10928014]
[1768812304209,0.00959512,93183.0,93165.0,4.579e-05]
[1768812304513,0.000161,93185.0,93170.0,0.14379833]
[1768812304514,0.010898,93185.0,93170.0,0.14379833]
[1768812304717,0.010898,93185.0,93170.0,0.14384412]
[1768812305019,0.010737,93183.0,93170.0,0.14384412]
[1768812305615,0.010737,93181.0,93170.0,0.14384412]
[1768812306415,0.000161,93185.0,93170.0,4.579e-05]
[1768812306609,0.000161,93185.0,93170.0,0.14384412]
[1768812307016,0.000161,93185.0,93171.0,0.00013074]
[1768812307215,0.010898,93185.0,93174.0,0.00013074]
[1768812307420,0.010737,93183.0,93174.0,0.00013074]
[1768812308323,0.000161,93185.0,93174.0,0.00013074]
[1768812309417,0.010737,93184.0,93174.0,0.00013074]
[1768812311225,0.010737,93182.0,93170.0,0.14397118]
[1768812311922,0.010737,93180.0,93170.0,0.14397118]
[1768812312215,0.000161,93185.0,93170.0,0.00017285]
[1768812312415,0.010737,93180.0,93170.0,0.14397118]
[1768812313122,0.010737,93180.0,93171.0,0.09664]
[1768812314122,0.000161,93185.0,93171.0,0.09664]
[1768812314317,0.000161,93185.0,93172.0,7.015e-05]
[1768812315220,0.09664,93198.0,93179.0,0.00416954]
[1768812315423,0.010736,93196.0,93184.0,7.015e-05]
[1768812315625,0.02411624,93195.0,93186.0,7.015e-05]
[1768812315923,0.10623512,93207.0,93186.0,7.015e-05]
[1768812315924,0.02411624,93194.0,93186.0,7.015e-05]
[1768812316110,0.01929523,93206.0,93186.0,7.015e-05]
[1768812316310,0.010736,93195.0,93186.0,7.015e-05]
[1768812317522,0.0023603,93209.0,93191.0,7.862e-05]
[1768812317727,0.02411626,93208.0,93195.0,7.862e-05]
[1768812317928,0.02411626,93207.0,93195.0,7.862e-05]
[1768812318118,0.02411626,93206.0,93195.0,7.862e-05]
[1768812318323,0.010735,93202.0,93195.0,7.862e-05]
[1768812318723,0.010735,93200.0,93194.0,0.10074504]
[1768812318927,0.010735,93200.0,93194.0,0.09664]
[1768812319127,0.010735,93203.0,93194.0,0.09664]
[1768812319328,0.010735,93201.0,93194.0,0.09664]
[1768812322521,0.010734,93205.0,93194.0,0.09664]
[1768812322928,0.010735,93201.0,93194.0,0.09664]
[1768812324733,0.010735,93201.0,93190.0,0.14379833]
[1768812325128,0.010735,93201.0,93191.0,0.09664]
[1768812325335,0.01880867,93206.0,93191.0,0.09664]
[1768812325834,0.01880867,93206.0,93190.0,0.14379833]
[1768812326029,0.00912367,93206.0,93191.0,0.09664]
[1768812326224,0.00912367,93206.0,93187.0,0.00021121]
[1768812326542,0.010735,93203.0,93190.0,0.14379833]
[1768812326929,0.01880867,93197.0,93185.0,0.09664]
[1768812327131,0.010736,93195.0,93185.0,0.09664]
[1768812328040,0.01985867,93197.0,93185.0,0.09664]
[1768812328339,0.010735,93197.0,93185.0,0.09664]
[1768812329136,0.0023603,93209.0,93190.0,0.00039007]
[1768812329337,0.02411168,93208.0,93193.0,0.00039007]
[1768812329537,0.010735,93205.0,93193.0,0.00039007]
[1768812329941,0.010735,93205.0,93190.0,0.14379833]
[1768812330632,0.0023603,93209.0,93191.0,0.00039218]
[1768812330841,0.02411079,93208.0,93193.0,0.00039218]
[1768812331043,0.02411079,93207.0,93197.0,0.00039218]
[1768812331243,0.010734,93208.0,93197.0,0.00039218]
[1768812331450,0.02410988,93207.0,93197.0,0.00039218]
[1768812331742,0.010734,93208.0,93197.0,0.00039218]
[1768812331942,0.02410988,93207.0,93197.0,0.00039218]
[1768812332149,0.010734,93208.0,93197.0,0.00039218]
[1768812332337,0.010734,93206.0,93193.0,0.00047607]
[1768812332741,0.010734,93206.0,93191.0,0.000161]
[1768812332930,0.0023603,93209.0,93192.0,0.00437001]
[1768812333131,0.09664,93217.0,93203.0,0.00047607]
[1768812333530,0.00235991,93224.0,93203.0,0.00047607]
[1768812333745,0.010733,93219.0,93200.0,0.01121107]
[1768812333944,0.009685,93220.0,93202.0,0.010735]
[1768812334146,0.01880867,93220.0,93202.0,0.010735]
[1768812335241,0.01880867,93220.0,93200.0,0.00047607]
[1768812335242,0.02954167,93220.0,93200.0,0.01121107]
[1768812335442,0.01880867,93219.0,93200.0,0.01121107]
[1768812336042,0.00912367,93219.0,93199.0,0.00401424]
[1768812336640,0.00912367,93219.0,93201.0,0.010735]
[1768812336944,0.010733,93218.0,93199.0,0.00401424]
[1768812337139,0.01880867,93217.0,93199.0,0.010735]
[1768812338741,0.010733,93216.0,93197.0,0.010735]
[1768812338951,0.01880867,93216.0,93197.0,0.010735]
[1768812340054,0.01906682,93215.0,93197.0,0.010735]
[1768812342751,0.01998149,93214.0,93197.0,0.010735]
[1768812343448,0.00924849,93202.0,93195.0,0.0966]
[1768812343651,0.00924849,93202.0,93195.0,0.08586504]
[1768812344040,0.02055233,93206.0,93195.0,0.08586504]
[1768812345048,0.00981833,93206.0,93195.0,0.08586504]
[1768812345851,0.00924849,93207.0,93195.0,0.08586504]
[1768812347649,0.01906682,93214.0,93195.0,0.08586504]
[1768812348146,0.010734,93212.0,93195.0,0.08586504]
[1768812348454,0.010734,93212.0,93194.0,0.010736]
[1768812349854,0.010734,93212.0,93195.0,0.0966]
[1768812350753,0.010734,93210.0,93195.0,0.0966]
[1768812352940,0.00983415,93210.0,93195.0,0.0966]
[1768812353144,0.010734,93207.0,93195.0,0.0966]
[1768812354060,0.010734,93207.0,93191.0,0.000161]
[1768812354254,0.010734,93207.0,93192.0,0.0966]
[1768812356948,0.010734,93207.0,93193.0,0.0966]
[1768812357149,0.02056815,93210.0,93193.0,0.0966]
[1768812357550,0.010734,93213.0,93193.0,0.0966]
[1768812357750,0.010734,93213.0,93194.0,0.010736]
[1768812358855,0.03040352,93216.0,93193.0,0.1004204]
[1768812359060,0.02395421,93215.0,93195.0,0.010736]
[1768812359255,0.02395421,93214.0,93199.0,0.010735]
[1768812359453,0.005,93211.0,93199.0,0.010735]
[1768812359653,0.005,93211.0,93196.0,0.0145554]
[1768812360057,0.005,93211.0,93197.0,0.00383128]
[1768812360451,0.015734,93211.0,93197.0,0.00383128]
[1768812361951,0.005,93211.0,93197.0,0.00383128]
[1768812363152,0.00983415,93217.0,93197.0,0.00383128]
[1768812363357,0.02397201,93216.0,93197.0,0.00383128]
[1768812363559,0.010734,93212.0,93197.0,0.00383128]
[1768812363864,0.00983415,93217.0,93197.0,0.00383128]
[1768812364063,0.02397201,93216.0,93199.0,0.00955786]
[1768812364362,0.02397201,93215.0,93199.0,0.00955786]
[1768812364566,0.02397201,93214.0,93199.0,0.00955786]
[1768812364763,0.02397201,93213.0,93199.0,0.00955786]
[1768812364964,0.02397201,93212.0,93199.0,0.00955786]
[1768812365165,0.010733,93215.0,93199.0,0.00955786]
[1768812365357,0.02394401,93214.0,93199.0,0.00955786]
[1768812365557,0.02394401,93213.0,93199.0,0.00955786]
[1768812365759,0.010733,93215.0,93199.0,0.00955786]
[1768812365961,0.02394334,93214.0,93199.0,0.00955786]
[1768812366162,0.02394334,93213.0,93199.0,0.00955786]
[1768812366357,0.010733,93215.0,93199.0,0.00955786]
[1768812366558,0.02394388,93214.0,93199.0,0.00955786]
[1768812366863,0.02394388,93213.0,93199.0,0.00955786]
[1768812367063,0.010733,93215.0,93199.0,0.00955786]
[1768812367257,0.02394471,93214.0,93199.0,0.00955786]
[1768812367563,0.02394471,93213.0,93199.0,0.00955786]
[1768812367765,0.010733,93215.0,93199.0,0.00955786]
[1768812367952,0.010734,93213.0,93197.0,0.00383128]
[1768812368152,0.010734,93211.0,93197.0,0.00383128]
[1768812369667,0.010733,93214.0,93195.0,0.02039268]
[1768812369867,0.02394721,93213.0,93197.0,0.010735]
[1768812370057,0.02394721,93212.0,93197.0,0.02038716]
[1768812370260,0.010733,93215.0,93197.0,0.02038716]
[1768812370460,0.02394852,93214.0,93197.0,0.02038716]
[1768812370753,0.02394852,93213.0,93197.0,0.02038716]
[1768812370956,0.02394852,93212.0,93198.0,0.00965216]
[1768812371159,0.00983415,93217.0,93198.0,0.00965216]
[1768812371370,0.02395013,93216.0,93199.0,0.00965216]
[1768812371666,0.02395013,93215.0,93199.0,0.00965216]
[1768812371855,0.02395013,93214.0,93199.0,0.00965216]
[1768812372057,0.02395013,93213.0,93200.0,0.010735]
[1768812372257,0.02395013,93212.0,93200.0,0.010735]
[1768812372453,0.010733,93216.0,93200.0,0.010735]
[1768812372662,0.02395188,93215.0,93199.0,0.00965216]
[1768812372857,0.02395188,93214.0,93199.0,0.00965216]
[1768812373062,0.02395188,93213.0,93198.0,0.00988177]
[1768812373254,0.02395188,93212.0,93198.0,0.00988177]
[1768812373464,0.010733,93216.0,93198.0,0.00988177]
[1768812373765,0.02395506,93215.0,93198.0,0.00988177]
[1768812373966,0.02395506,93214.0,93198.0,0.00988177]
[1768812374164,0.02395506,93213.0,93198.0,0.00988177]
[1768812374361,0.02395506,93212.0,93198.0,0.00988177]
[1768812374561,0.010733,93216.0,93200.0,0.010735]
[1768812374762,0.02395498,93215.0,93204.0,0.00236041]
[1768812374968,0.02395498,93214.0,93204.0,0.00236041]
[1768812375160,0.02395498,93213.0,93204.0,0.00236041]
[1768812375359,0.02395498,93212.0,93204.0,0.00236041]
[1768812375559,0.010733,93216.0,93204.0,0.00236041]
[1768812375769,0.02395486,93215.0,93204.0,0.00236041]
[1768812375969,0.02395486,93214.0,93204.0,0.00236041]
[1768812376170,0.02395486,93213.0,93204.0,0.00236041]
[1768812376374,0.02395486,93212.0,93204.0,0.00236041]
[1768812376575,0.01967052,93217.0,93204.0,0.00236041]
[1768812376765,0.02395474,93216.0,93204.0,0.00236041]
[1768812376963,0.02395474,93215.0,93204.0,0.00236041]
[1768812377167,0.02395474,93214.0,93204.0,0.00236041]
[1768812377362,0.02395474,93213.0,93204.0,0.00236041]
[1768812377575,0.02395474,93212.0,93204.0,0.00236041]
[1768812377874,0.010733,93214.0,93204.0,0.00236041]
[1768812378074,0.02395464,93213.0,93204.0,0.00236041]
[1768812378374,0.02395464,93212.0,93204.0,0.00236041]
[1768812378570,0.03040352,93217.0,93204.0,0.00236041]
[1768812378765,0.02395455,93216.0,93204.0,0.00236041]
[1768812378964,0.02395455,93215.0,93204.0,0.00236041]
[1768812379178,0.0966,93220.0,93204.0,0.01309541]
[1768812379179,0.02395455,93214.0,93204.0,0.01309541]
[1768812379367,0.02395455,93213.0,93204.0,0.01309541]
[1768812379567,0.107333,93220.0,93204.0,0.00236041]
[1768812379766,0.02395342,93219.0,93204.0,0.00236041]
[1768812379968,4.2e-07,93218.0,93211.0,0.02020001]
[1768812380168,0.00235979,93229.0,93212.0,0.00946601]
[1768812381777,0.010732,93225.0,93209.0,0.0966]
[1768812382475,0.010732,93227.0,93209.0,0.0966]
[1768812382978,0.02014765,93227.0,93209.0,0.0966]
[1768812384387,0.02014765,93227.0,93209.0,0.107334]
[1768812384775,0.00941565,93227.0,93209.0,0.0966]
[1768812384986,0.00983415,93228.0,93209.0,0.10590349]
[1768812385686,0.0192498,93228.0,93209.0,0.10590349]
[1768812385872,0.010732,93224.0,93209.0,0.10590349]
[1768812386982,0.010732,93227.0,93209.0,0.10590349]
[1768812387577,0.010732,93225.0,93209.0,0.10590349]
[1768812388380,0.010732,93223.0,93209.0,0.10590349]
[1768812388778,0.010732,93223.0,93209.0,0.0966]
[1768812389784,0.00922319,93226.0,93209.0,0.0966]
[1768812389978,0.01863884,93225.0,93209.0,0.0966]
[1768812390373,0.010732,93222.0,93209.0,0.0966]
[1768812390982,0.010732,93222.0,93208.0,0.0966]
[1768812391184,0.010732,93222.0,93206.0,0.00889143]
[1768812391387,0.00922319,93210.0,93204.0,0.00236041]
[1768812391683,0.01863884,93221.0,93204.0,0.00236041]
[1768812391884,0.10601565,93225.0,93205.0,0.00890002]
[1768812392181,0.02382856,93224.0,93209.0,0.0088974]
[1768812392374,0.02382856,93223.0,93214.0,0.0088974]
[1768812392575,0.00235979,93229.0,93220.0,0.0088974]
[1768812392878,0.00235979,93229.0,93216.0,0.0196304]
[1768812393077,0.00235979,93229.0,93217.0,0.0088974]
[1768812395270,0.00235979,93229.0,93218.0,0.00891608]
[1768812395477,0.00235979,93229.0,93219.0,0.00891608]
[1768812397185,0.010731,93235.0,93219.0,0.00891608]
[1768812397487,0.14374785,93240.0,93224.0,0.00895609]
[1768812397681,0.010731,93238.0,93224.0,0.00895609]
[1768812399001,0.010731,93238.0,93222.0,0.00989262]
[1768812399284,0.010731,93234.0,93220.0,0.00895956]
[1768812400993,0.010732,93230.0,93217.0,0.10649262]
[1768812401288,0.010732,93230.0,93194.0,0.010736]
[1768812401289,0.010732,93226.0,93209.0,0.00903138]
[1768812401483,0.01902596,93228.0,93210.0,0.0966]
[1768812402086,0.01902596,93228.0,93210.0,0.10564418]
[1768812402288,0.00905657,93228.0,93210.0,0.10564418]
[1768812404380,0.00905657,93228.0,93211.0,0.00910857]
[1768812404691,0.00905657,93228.0,93212.0,0.010734]
[1768812404890,0.14374785,93230.0,93214.0,0.01984157]
[1768812407092,0.14374785,93230.0,93214.0,0.01992956]
[1768812407593,0.15447985,93230.0,93214.0,0.00919656]
[1768812408993,0.01902596,93229.0,93213.0,0.107333]
[1768812409187,0.010732,93228.0,93213.0,0.0966]
[1768812410592,0.14374785,93230.0,93215.0,0.01903337]
[1768812410794,0.010731,93233.0,93217.0,0.0092153]
[1768812410995,0.01902596,93239.0,93217.0,0.0092153]
[1768812410996,0.14374785,93230.0,93217.0,0.0092153]
[1768812411192,0.14374785,93240.0,93222.0,0.0092153]
[1768812411397,0.010731,93236.0,93222.0,0.0092153]
[1768812411787,0.010731,93236.0,93221.0,0.00981807]
[1768812411982,0.010731,93236.0,93218.0,0.01987439]
[1768812412588,0.00996939,93238.0,93218.0,0.00914139]
[1768812412797,0.14374785,93240.0,93224.0,0.01987339]
[1768812412994,0.02331209,93239.0,93224.0,0.01987339]
[1768812413197,0.14374785,93240.0,93224.0,0.01987339]
[1768812413399,0.02331245,93239.0,93224.0,0.010732]
[1768812413601,0.14374785,93240.0,93226.0,0.010732]
[1768812413899,0.03248073,93239.0,93223.0,0.010732]
[1768812414095,0.010731,93238.0,93222.0,0.00914139]
[1768812414599,0.010731,93238.0,93220.0,0.010733]
[1768812414794,0.00916828,93239.0,93222.0,0.010732]
[1768812415300,0.01989928,93239.0,93222.0,0.010732]
[1768812415599,0.01853098,93238.0,93222.0,0.010732]
[1768812416901,0.00916828,93238.0,93220.0,0.00919158]
[1768812417100,0.00916828,93238.0,93220.0,0.15293943]
[1768812418102,0.00916828,93238.0,93225.0,0.010732]
[1768812419105,0.14374785,93240.0,93225.0,0.010732]
[1768812419301,0.02332264,93239.0,93225.0,0.010732]
[1768812419604,0.02332264,93238.0,93227.0,0.010732]
[1768812419796,0.14374785,93240.0,93227.0,0.010732]
[1768812420105,0.02332264,93239.0,93224.0,0.010732]
[1768812420302,0.02332264,93238.0,93220.0,0.15294392]
[1768812420502,0.0989594,93244.0,93228.0,0.00919607]
[1768812420705,0.0989594,93244.0,93220.0,0.14374785]
[1768812420706,0.02332593,93243.0,93231.0,0.010731]
[1768812420900,0.02332593,93242.0,93231.0,0.010731]
[1768812421098,0.02332593,93241.0,93231.0,0.010731]
[1768812421296,0.02332593,93240.0,93231.0,0.010731]
[1768812421490,0.0989594,93244.0,93231.0,0.010731]
[1768812421691,0.0233281,93243.0,93231.0,0.010731]
[1768812421894,0.0233281,93242.0,93228.0,0.010732]
[1768812422104,0.0233281,93241.0,93228.0,0.010732]
[1768812422292,0.0233281,93240.0,93228.0,0.010732]
[1768812422497,0.0989594,93244.0,93226.0,0.00920316]
[1768812422698,0.02333583,93243.0,93230.0,0.010732]
[1768812422904,0.0989594,93244.0,93230.0,0.010732]
[1768812422905,0.02333583,93242.0,93230.0,0.010732]
[1768812423104,0.02333583,93241.0,93230.0,0.010732]
[1768812423404,0.0989594,93244.0,93230.0,0.010732]
[1768812423602,0.02333502,93243.0,93231.0,0.00916975]
[1768812423806,0.010728,93261.0,93226.0,0.00970923]
[1768812423807,0.010729,93252.0,93236.0,0.010731]
[1768812424105,0.01989828,93247.0,93231.0,0.010731]
[1768812424306,0.01989828,93247.0,93229.0,0.00916975]
[1768812424606,0.02926098,93247.0,93228.0,0.010732]
[1768812425311,0.0093627,93246.0,93230.0,0.010732]
[1768812425693,0.15311055,93250.0,93231.0,0.00917652]
[1768812425993,0.02310222,93249.0,93231.0,0.00917652]
[1768812426199,0.01073,93246.0,93231.0,0.00917652]
[1768812426709,0.01073,93246.0,93230.0,0.15447985]
[1768812426909,0.01073,93246.0,93230.0,0.010732]
[1768812427312,0.01073,93244.0,93227.0,0.00917652]
[1768812427609,0.01073,93244.0,93229.0,0.00016091]
[1768812427810,0.01853098,93246.0,93229.0,0.01089291]
[1768812428512,0.01853098,93246.0,93229.0,0.00016091]
[1768812428813,0.0093627,93258.0,93239.0,0.00970923]
[1768812429022,0.14374785,93250.0,93233.0,0.01996579]
[1768812430712,0.13874785,93250.0,93234.0,0.00923479]
[1768812430912,0.01073,93246.0,93230.0,0.01983743]
[1768812431210,0.02925998,93249.0,93230.0,0.010732]
[1768812431806,0.0093627,93245.0,93229.0,0.09676091]
[1768812432005,0.010731,93239.0,93229.0,0.09676091]
[1768812432202,0.14374785,93240.0,93229.0,0.09676091]
[1768812432802,0.00916828,93244.0,93223.0,0.010732]
[1768812432803,0.01853098,93239.0,93225.0,0.0966]
[1768812433008,0.00916828,93238.0,93225.0,0.0966]
[1768812433204,0.00916828,93238.0,93225.0,0.037332]
[1768812433405,0.0093627,93243.0,93225.0,0.037332]
[1768812434405,0.01073,93243.0,93226.0,0.00959035]
[1768812434610,0.14374785,93240.0,93220.0,0.14374785]
[1768812434816,0.15447885,93232.0,93219.0,0.0966]
[1768812435108,0.0093627,93231.0,93214.0,0.0966]
[1768812435315,0.0966,93239.0,93215.0,0.010733]